fUSD/lending_fUSD_20240814
["ID","MTS","AMOUNT","RATE_DAILY","PERIOD"]
[334806785,1723602646804,-500.0,0.00013698,2]
[334806786,1723602646813,-504.84,0.00013698,2]
[334806787,1723602646823,-1456.45,0.00013698,2]
[334806788,1723602646833,-500.0,0.00013698,2]
[334806789,1723602646843,-500.0,0.00013698,2]
[334806790,1723602646852,-500.0,0.00013698,2]
[334806791,1723602646861,-6307.85,0.00013698,2]
[334806792,1723602646871,-500.0,0.00013698,2]
[334806793,1723602646880,-884.35,0.00013698,2]
[334806794,1723602646889,-500.0,0.00013698,2]
[334806795,1723602646900,-550.92,0.00013698,2]
[334806796,1723602646909,-1000.0,0.00013698,2]
[334806797,1723602646919,-500.0,0.00013698,2]
[334806798,1723602646928,-500.0,0.00013698,2]
[334806799,1723602646938,-500.0,0.00013698,2]
[334806800,1723602646947,-500.0,0.00013698,2]
[334806801,1723602646956,-500.0,0.00013698,2]
[334806802,1723602646966,-559.42,0.00013698,2]
[334806803,1723602646975,-500.0,0.00013698,2]
[334806804,1723602646985,-644.26,0.00013698,2]
[334806805,1723602646994,-500.0,0.00013698,2]
[334806806,1723602647003,-4466.82,0.00013698,2]
[334806807,1723602647013,-6959.5,0.00013698,2]
[334806808,1723602647022,-654.94,0.00013698,2]
[334806809,1723602647031,-500.0,0.00013698,2]
[334806810,1723602647040,-763.62,0.00013698,2]
[334806811,1723602647049,-1916.46,0.00013698,2]
[334806812,1723602647059,-500.0,0.00013698,2]
[334806813,1723602647068,-500.0,0.00013698,2]
[334806814,1723602647077,-1638.1,0.00013698,2]
[334806815,1723602647087,-533.42,0.00013698,2]
[334806816,1723602647096,-500.0,0.00013698,2]
[334806817,1723602647106,-500.0,0.00013698,2]
[334806818,1723602647117,-500.0,0.00013698,2]
[334806819,1723602647126,-500.0,0.00013698,2]
[334806820,1723602647136,-500.0,0.00013698,2]
[334806821,1723602647146,-1042.18,0.00013698,2]
[334806822,1723602647158,-500.0,0.00013698,2]
[334806823,1723602647168,-500.0,0.00013698,2]
[334806824,1723602647177,-500.0,0.00013698,2]
[334806825,1723602647187,-3604.66,0.00013698,2]
[334806826,1723602647196,-502.13,0.00013698,2]
[334806827,1723602647206,-500.0,0.00013698,2]
[334806828,1723602647215,-500.0,0.00013698,2]
[334806829,1723602647225,-681.42,0.00013698,2]
[334806830,1723602647310,-500.0,0.00013698,2]
[334806831,1723602647319,-500.0,0.00013698,2]
[334806832,1723602647328,-500.0,0.00013698,2]
[334806833,1723602647337,-500.0,0.00013698,2]
[334806834,1723602647346,-500.0,0.00013698,2]
[334806835,1723602647355,-1357.05,0.00013698,2]
[334806836,1723602647364,-500.0,0.00013698,2]
[334806837,1723602647373,-500.0,0.00013698,2]
[334806838,1723602647383,-500.0,0.00013698,2]
[334806839,1723602647392,-500.0,0.00013698,2]
[334806840,1723602647403,-500.0,0.00013698,2]
[334806841,1723602647412,-2243.59,0.00013698,2]
[334806842,1723602647421,-500.0,0.00013698,2]
[334806843,1723602647431,-928.88,0.00013698,2]
[334806844,1723602647440,-500.0,0.00013698,2]
[334806845,1723602647449,-500.0,0.00013698,2]
[334806846,1723602647458,-1262.07,0.00013698,2]
[334806847,1723602647468,-500.0,0.00013698,2]
[334806848,1723602647477,-1077.03,0.00013698,2]
[334806849,1723602647486,-500.0,0.00013698,2]
[334806850,1723602647496,-500.0,0.00013698,2]
[334806851,1723602647505,-902.66,0.00013698,2]
[334806852,1723602647514,-500.0,0.00013698,2]
[334806853,1723602647524,-2208.6,0.00013698,2]
[334806854,1723602647533,-960.83,0.00013698,2]
[334806855,1723602647544,-541.94,0.00013698,2]
[334806856,1723602647556,-500.0,0.00013698,2]
[334806857,1723602647567,-1854.28,0.00013698,2]
[334806858,1723602647577,-500.70091924,0.00013698,2]
[334806859,1723602647587,-500.0,0.00013698,2]
[334806860,1723602647596,-500.0,0.00013698,2]
[334806861,1723602647606,-500.0,0.00013698,2]
[334806862,1723602647616,-500.0,0.00013698,2]
[334806863,1723602647626,-501.11950339,0.00013698,2]
[334806864,1723602647636,-500.0,0.00013698,2]
[334806865,1723602647647,-500.0,0.00013698,2]
[334806866,1723602647656,-500.0,0.00013698,2]
[334806867,1723602647666,-4353.35,0.00013698,2]
[334806868,1723602647675,-733.57,0.00013698,2]
[334806869,1723602647684,-1805.38,0.00013698,2]
[334806870,1723602647693,-500.0,0.00013698,2]
[334806871,1723602647702,-646.39,0.00013698,2]
[334806872,1723602647715,-1077.42,0.00013698,2]
[334806873,1723602647725,-500.0,0.00013698,2]
[334806874,1723602647736,-500.0,0.00013698,2]
[334806875,1723602647746,-500.0,0.00013698,2]
[334806876,1723602647756,-500.0,0.00013698,2]
[334806877,1723602647766,-500.0,0.00013698,2]
[334806878,1723602647775,-500.0,0.00013698,2]
[334806879,1723602647786,-500.0,0.00013698,2]
[334806880,1723602647798,-968.21,0.00013698,2]
[334806881,1723602647810,-500.0,0.00013698,2]
[334806882,1723602647821,-500.0,0.00013698,2]
[334806883,1723602647834,-500.0,0.00013698,2]
[334806884,1723602647844,-3140.34,0.00013698,2]
[334806885,1723602647855,-500.0,0.00013698,2]
[334806886,1723602647866,-587.66,0.00013698,2]
[334806887,1723602647876,-500.0,0.00013698,2]
[334806888,1723602647886,-500.0,0.00013698,2]
[334806889,1723602647895,-150.0,0.00013698,2]
[334806890,1723602647906,-2924.33,0.00013698,2]
[334806891,1723602647916,-500.0,0.00013698,2]
[334806892,1723602647924,-500.0,0.00013698,2]
[334806893,1723602647933,-788.44,0.00013698,2]
[334806894,1723602647942,-617.34,0.00013698,2]
[334806895,1723602647951,-1229.56,0.00013698,2]
[334806896,1723602647960,-500.0,0.00013698,2]
[334806897,1723602647970,-500.0,0.00013698,2]
[334806898,1723602647979,-882.24,0.00013698,2]
[334806899,1723602647989,-500.0,0.00013698,2]
[334806900,1723602647998,-500.0,0.00013698,2]
[334806901,1723602648008,-1869.03,0.00013698,2]
[334806902,1723602648017,-500.0,0.00013698,2]
[334806903,1723602648026,-500.0,0.00013698,2]
[334806904,1723602648036,-1665.15,0.00013698,2]
[334806905,1723602648045,-500.0,0.00013698,2]
[334806906,1723602648055,-500.0,0.00013698,2]
[334806907,1723602648065,-1247.42,0.00013698,2]
[334806908,1723602648074,-500.0,0.00013698,2]
[334806909,1723602648084,-378.45185081,0.00013698,2]
[334806910,1723602648093,-1275.57,0.00013698,2]
[334806911,1723602648103,-500.0,0.00013698,2]
[334806912,1723602648113,-500.0,0.00013698,2]
[334806913,1723602648123,-500.0,0.00013698,2]
[334806914,1723602648132,-500.0,0.00013698,2]
[334806915,1723602648142,-500.0,0.00013698,2]
[334806916,1723602648153,-500.0,0.00013698,2]
[334806917,1723602648163,-618.67,0.00013698,2]
[334806918,1723602648172,-500.0,0.00013698,2]
[334806919,1723602648182,-500.0,0.00013698,2]
[334806920,1723602648192,-500.0,0.00013698,2]
[334806921,1723602648202,-1871.57,0.00013698,2]
[334806922,1723602648212,-500.0,0.00013698,2]
[334806923,1723602648222,-500.0,0.00013698,2]
[334806924,1723602648232,-1197.77,0.00013698,2]
[334806925,1723602648242,-500.0,0.00013698,2]
[334806926,1723602648252,-2349.02,0.00013698,2]
[334806927,1723602648262,-500.0,0.00013698,2]
[334806928,1723602648272,-500.0,0.00013698,2]
[334806929,1723602648283,-1090.83,0.00013698,2]
[334806930,1723602648293,-500.0,0.00013698,2]
[334806931,1723602648303,-500.0,0.00013698,2]
[334806932,1723602648313,-500.0,0.00013698,2]
[334806933,1723602648323,-1052.13,0.00013698,2]
[334806934,1723602648333,-500.0,0.00013698,2]
[334806935,1723602648343,-3200.18,0.00013698,2]
[334806936,1723602648353,-2895.14,0.00013698,2]
[334806937,1723602648363,-500.0,0.00013698,2]
[334806938,1723602648372,-500.0,0.00013698,2]
[334806939,1723602648382,-500.0,0.00013698,2]
[334806940,1723602648392,-500.0,0.00013698,2]
[334806941,1723602648403,-500.54841918,0.00013698,2]
[334806942,1723602648414,-605.15,0.00013698,2]
[334806943,1723602648427,-500.0,0.00013698,2]
[334806944,1723602648437,-500.0,0.00013698,2]
[334806945,1723602648447,-500.0,0.00013698,2]
[334806946,1723602648458,-4446.29,0.00013698,2]
[334806947,1723602648468,-500.0,0.00013698,2]
[334806948,1723602648477,-500.0,0.00013698,2]
[334806949,1723602648487,-500.0,0.00013698,2]
[334806950,1723602648497,-500.0,0.00013698,2]
[334806951,1723602648510,-7040.72,0.00013698,2]
[334806952,1723602648520,-500.0,0.00013698,2]
[334806953,1723602648530,-500.0,0.00013698,2]
[334806954,1723602648540,-500.0,0.00013698,2]
[334806955,1723602648550,-500.0,0.00013698,2]
[334806956,1723602648560,-500.0,0.00013698,2]
[334806957,1723602648574,-800.41,0.00013698,2]
[334806958,1723602648583,-500.0,0.00013698,2]
[334806959,1723602648593,-2509.91,0.00013698,2]
[334806960,1723602648602,-500.4964205,0.00013698,2]
[334806961,1723602648613,-500.0,0.00013698,2]
[334806962,1723602648623,-562.14,0.00013698,2]
[334806963,1723602648633,-500.0,0.00013698,2]
[334806964,1723602648643,-500.0,0.00013698,2]
[334806965,1723602648657,-548.73,0.00013698,2]
[334806966,1723602648668,-500.0,0.00013698,2]
[334806967,1723602648678,-526.56,0.00013698,2]
[334806968,1723602648688,-500.0,0.00013698,2]
[334806969,1723602648698,-861.17,0.00013698,2]
[334806970,1723602648708,-500.0,0.00013698,2]
[334806971,1723602648718,-1302.56,0.00013698,2]
[334806972,1723602648728,-500.0,0.00013698,2]
[334806973,1723602648738,-500.0,0.00013698,2]
[334806974,1723602648749,-500.0,0.00013698,2]
[334806975,1723602648759,-500.0,0.00013698,2]
[334806976,1723602648769,-1664.02,0.00013698,2]
[334806977,1723602648779,-782.16,0.00013698,2]
[334806978,1723602648789,-500.0,0.00013698,2]
[334806979,1723602648799,-549.44,0.00013698,2]
[334806980,1723602648809,-500.0,0.00013698,2]
[334806981,1723602648819,-500.0,0.00013698,2]
[334806982,1723602648830,-654.93,0.00013698,2]
[334806983,1723602648840,-500.0,0.00013698,2]
[334806984,1723602648850,-500.0,0.00013698,2]
[334806985,1723602648860,-500.0,0.00013698,2]
[334806986,1723602648870,-500.0,0.00013698,2]
[334806987,1723602648880,-3395.39,0.00013698,2]
[334806988,1723602648890,-2466.93,0.00013698,2]
[334806989,1723602648899,-500.0,0.00013698,2]
[334806990,1723602648909,-505.95538885,0.00013698,2]
[334806991,1723602648919,-500.0,0.00013698,2]
[334806992,1723602648929,-740.8,0.00013698,2]
[334806993,1723602648939,-1749.01,0.00013698,2]
[334806994,1723602648950,-500.0,0.00013698,2]
[334806995,1723602648960,-500.0,0.00013698,2]
[334806996,1723602648970,-931.95,0.00013698,2]
[334806997,1723602648980,-500.0,0.00013698,2]
[334806998,1723602648990,-576.58687131,0.00013698,2]
[334806999,1723602649000,-545.89,0.00013698,2]
[334807000,1723602649010,-519.5,0.00013698,2]
[334807001,1723602649021,-500.50285587,0.00013698,2]
[334807002,1723602649031,-1101.84,0.00013698,2]
[334807003,1723602649041,-500.0,0.00013698,2]
[334807004,1723602649051,-500.0,0.00013698,2]
[334807005,1723602649061,-500.0,0.00013698,2]
[334807006,1723602649071,-500.0,0.00013698,2]
[334807007,1723602649082,-1831.31,0.00013698,2]
[334807008,1723602649093,-656.45,0.00013698,2]
[334807009,1723602649103,-500.0,0.00013698,2]
[334807010,1723602649113,-500.0,0.00013698,2]
[334807011,1723602649122,-250.8350454,0.00013698,2]
[334807012,1723602649132,-500.0,0.00013698,2]
[334807013,1723602649143,-500.0,0.00013698,2]
[334807014,1723602649154,-1637.89,0.00013698,2]
[334807015,1723602649163,-500.0,0.00013698,2]
[334807016,1723602649173,-986.03,0.00013698,2]
[334807017,1723602649183,-500.0,0.00013698,2]
[334807018,1723602649193,-500.0,0.00013698,2]
[334807019,1723602649204,-500.0,0.00013698,2]
[334807020,1723602649214,-1119.57,0.00013698,2]
[334807021,1723602649224,-157.096925,0.00013698,2]
[334807022,1723602649234,-1252.01,0.00013698,2]
[334807023,1723602649244,-1027.61,0.00013698,2]
[334807024,1723602649253,-1807.03,0.00013698,2]
[334807025,1723602649263,-500.0,0.00013698,2]
[334807026,1723602649274,-500.0,0.00013698,2]
[334807027,1723602649284,-500.0,0.00013698,2]
[334807028,1723602649294,-682.54,0.00013698,2]
[334807029,1723602649304,-500.0,0.00013698,2]
[334807030,1723602649314,-500.0,0.00013698,2]
[334807031,1723602649324,-2251.48,0.00013698,2]
[334807032,1723602649334,-500.0,0.00013698,2]
[334807033,1723602649344,-500.0,0.00013698,2]
[334807034,1723602649354,-500.0,0.00013698,2]
[334807035,1723602649363,-583.48,0.00013698,2]
[334807036,1723602649373,-2644.59,0.00013698,2]
[334807037,1723602649383,-500.0,0.00013698,2]
[334807038,1723602649393,-500.0,0.00013698,2]
[334807039,1723602649403,-500.0,0.00013698,2]
[334807040,1723602649412,-514.39,0.00013698,2]
[334807041,1723602649422,-500.0,0.00013698,2]
[334807042,1723602649432,-500.0,0.00013698,2]
[334807043,1723602649442,-1645.93,0.00013698,2]
[334807044,1723602649453,-1102.49,0.00013698,2]
[334807045,1723602649462,-500.0,0.00013698,2]
[334807046,1723602649473,-500.0,0.00013698,2]
[334807047,1723602649483,-500.0,0.00013698,2]
[334807048,1723602649493,-500.0,0.00013698,2]
[334807049,1723602649503,-603.94,0.00013698,2]
[334807050,1723602649514,-2117.25,0.00013698,2]
[334807051,1723602649523,-553.13,0.00013698,2]
[334807052,1723602649534,-500.0,0.00013698,2]
[334807053,1723602649544,-500.0,0.00013698,2]
[334807054,1723602649554,-500.0,0.00013698,2]
[334807055,1723602649565,-500.0,0.00013698,2]
[334807056,1723602649576,-1476.51,0.00013698,2]
[334807057,1723602649586,-500.0,0.00013698,2]
[334807058,1723602649596,-648.34414449,0.00013698,2]
[334807059,1723602649607,-961.13,0.00013698,2]
[334807060,1723602649617,-500.0,0.00013698,2]
[334807061,1723602649627,-500.0,0.00013698,2]
[334807062,1723602649637,-500.0,0.00013698,2]
[334807063,1723602649648,-500.0,0.00013698,2]
[334807064,1723602649657,-923.52,0.00013698,2]
[334807065,1723602649667,-500.0,0.00013698,2]
[334807066,1723602649676,-500.0,0.00013698,2]
[334807067,1723602649685,-2651.1,0.00013698,2]
[334807068,1723602649695,-500.0,0.00013698,2]
[334807069,1723602649704,-500.0,0.00013698,2]
[334807070,1723602649714,-500.0,0.00013698,2]
[334807071,1723602649724,-820.76,0.00013698,2]
[334807072,1723602649734,-864.51,0.00013698,2]
[334807073,1723602649744,-1999.93,0.00013698,2]
[334807074,1723602649753,-500.0,0.00013698,2]
[334807075,1723602649763,-500.0,0.00013698,2]
[334807076,1723602649773,-500.0,0.00013698,2]
[334807077,1723602649782,-500.0,0.00013698,2]
[334807078,1723602649792,-500.0,0.00013698,2]
[334807079,1723602649802,-500.0,0.00013698,2]
[334807080,1723602649812,-500.0,0.00013698,2]
[334807081,1723602649821,-500.0,0.00013698,2]
[334807082,1723602649831,-500.0,0.00013698,2]
[334807083,1723602649841,-500.0,0.00013698,2]
[334807084,1723602649850,-500.0,0.00013698,2]
[334807085,1723602649860,-500.0,0.00013698,2]
[334807086,1723602649869,-553.97217717,0.00013698,2]
[334807087,1723602649879,-500.0,0.00013698,2]
[334807088,1723602649890,-541.79,0.00013698,2]
[334807089,1723602649900,-500.0,0.00013698,2]
[334807090,1723602649912,-1149.74,0.00013698,2]
[334807091,1723602649921,-500.0,0.00013698,2]
[334807092,1723602649931,-500.0,0.00013698,2]
[334807093,1723602649940,-1141.18,0.00013698,2]
[334807094,1723602649950,-802.81,0.00013698,2]
[334807095,1723602649960,-500.0,0.00013698,2]
[334807096,1723602650148,-500.0,0.00013698,2]
[334807097,1723602650160,-500.0,0.00013698,2]
[334807098,1723602650169,-500.0,0.00013698,2]
[334807099,1723602650179,-1938.45,0.00013698,2]
[334807100,1723602650189,-501.41671913,0.00013698,2]
[334807101,1723602650198,-173.27732198,0.00013698,2]
[334807102,1723602650208,-710.24,0.00013698,2]
[334807103,1723602650218,-3319.43,0.00013698,2]
[334807104,1723602650227,-1091.48,0.00013698,2]
[334807105,1723602650237,-500.0,0.00013698,2]
[334807106,1723602650246,-500.0,0.00013698,2]
[334807107,1723602650256,-500.0,0.00013698,2]
[334807108,1723602650266,-500.0,0.00013698,2]
[334807109,1723602650276,-636.08,0.00013698,2]
[334807110,1723602650285,-500.0,0.00013698,2]
[334807111,1723602650295,-742.19,0.00013698,2]
[334807112,1723602650304,-500.0,0.00013698,2]
[334807113,1723602650313,-604.41,0.00013698,2]
[334807114,1723602650323,-500.0,0.00013698,2]
[334807115,1723602650333,-500.0,0.00013698,2]
[334807116,1723602650342,-846.65,0.00013698,2]
[334807117,1723602650353,-747.29,0.00013698,2]
[334807118,1723602650362,-1325.67,0.00013698,2]
[334807119,1723602650373,-856.78,0.00013698,2]
[334807120,1723602650382,-531.62,0.00013698,2]
[334807121,1723602650391,-500.0,0.00013698,2]
[334807122,1723602650401,-551.44,0.00013698,2]
[334807123,1723602650410,-500.0,0.00013698,2]
[334807124,1723602650419,-500.0,0.00013698,2]
[334807125,1723602650428,-500.0,0.00013698,2]
[334807126,1723602650438,-521.06,0.00013698,2]
[334807127,1723602650447,-500.0,0.00013698,2]
[334807128,1723602650456,-500.0,0.00013698,2]
[334807129,1723602650465,-507.23,0.00013698,2]
[334807130,1723602650474,-500.0,0.00013698,2]
[334807131,1723602650483,-500.0,0.00013698,2]
[334807132,1723602650492,-500.0,0.00013698,2]
[334807133,1723602650501,-500.0,0.00013698,2]
[334807134,1723602650511,-565.49,0.00013698,2]
[334807135,1723602650520,-500.0,0.00013698,2]
[334807136,1723602650530,-500.0,0.00013698,2]
[334807137,1723602650544,-500.0,0.00013698,2]
[334807138,1723602650553,-1207.43,0.00013698,2]
[334807139,1723602650564,-500.0,0.00013698,2]
[334807140,1723602650576,-555.32,0.00013698,2]
[334807141,1723602650586,-500.0,0.00013698,2]
[334807142,1723602650596,-500.0,0.00013698,2]
[334807143,1723602650607,-500.0,0.00013698,2]
[334807144,1723602650618,-500.0,0.00013698,2]
[334807145,1723602650628,-666.2,0.00013698,2]
[334807146,1723602650638,-500.0,0.00013698,2]
[334807147,1723602650651,-500.0,0.00013698,2]
[334807148,1723602650660,-500.0,0.00013698,2]
[334807149,1723602650670,-500.0,0.00013698,2]
[334807150,1723602650681,-562.7,0.00013698,2]
[334807151,1723602650690,-500.0,0.00013698,2]
[334807152,1723602650699,-500.0,0.00013698,2]
[334807153,1723602650708,-500.0,0.00013698,2]
[334807154,1723602650718,-905.19,0.00013698,2]
[334807155,1723602650727,-500.0,0.00013698,2]
[334807156,1723602650736,-500.0,0.00013698,2]
[334807157,1723602650746,-1188.04,0.00013698,2]
[334807158,1723602650755,-715.94,0.00013698,2]
[334807159,1723602650765,-500.0,0.00013698,2]
[334807160,1723602650774,-500.0,0.00013698,2]
[334807161,1723602650783,-500.0,0.00013698,2]
[334807162,1723602650792,-500.0,0.00013698,2]
[334807163,1723602650801,-500.0,0.00013698,2]
[334807164,1723602650810,-500.0,0.00013698,2]
[334807165,1723602650820,-500.0,0.00013698,2]
[334807166,1723602650829,-500.0,0.00013698,2]
[334807167,1723602650838,-500.0,0.00013698,2]
[334807168,1723602650848,-500.0,0.00013698,2]
[334807169,1723602650858,-228.68102102,0.00013698,2]
[334807170,1723602650868,-501.75415623,0.00013698,2]
[334807171,1723602650877,-500.0,0.00013698,2]
[334807172,1723602650886,-500.0,0.00013698,2]
[334807173,1723602650895,-500.0,0.00013698,2]
[334807174,1723602650905,-500.0,0.00013698,2]
[334807175,1723602650915,-806.47,0.00013698,2]
[334807176,1723602650924,-1290.42,0.00013698,2]
[334807177,1723602650933,-507.78,0.00013698,2]
[334807178,1723602650943,-500.0,0.00013698,2]
[334807179,1723602650952,-500.0,0.00013698,2]
[334807180,1723602650962,-500.0,0.00013698,2]
[334807181,1723602650972,-1306.94,0.00013698,2]
[334807182,1723602650981,-500.0,0.00013698,2]
[334807183,1723602650991,-500.0,0.00013698,2]
[334807184,1723602651000,-500.0,0.00013698,2]
[334807185,1723602651010,-507.92294455,0.00013698,2]
[334807186,1723602651019,-500.0,0.00013698,2]
[334807187,1723602651028,-1269.27,0.00013698,2]
[334807188,1723602651037,-500.0,0.00013698,2]
[334807189,1723602651046,-500.0,0.00013698,2]
[334807190,1723602651056,-500.0,0.00013698,2]
[334807191,1723602651065,-1016.57,0.00013698,2]
[334807192,1723602651074,-500.0,0.00013698,2]
[334807193,1723602651084,-511.92834064,0.00013698,2]
[334807194,1723602651094,-898.26,0.00013698,2]
[334807195,1723602651103,-500.0,0.00013698,2]
[334807196,1723602651112,-700.94,0.00013698,2]
[334807197,1723602651123,-503.97115459,0.00013698,2]
[334807198,1723602651132,-500.0,0.00013698,2]
[334807199,1723602651142,-500.0,0.00013698,2]
[334807200,1723602651151,-1900.3,0.00013698,2]
[334807201,1723602651160,-500.0,0.00013698,2]
[334807202,1723602651170,-500.0,0.00013698,2]
[334807203,1723602651180,-500.0,0.00013698,2]
[334807204,1723602651190,-500.129008,0.00013698,2]
[334807205,1723602651199,-500.0,0.00013698,2]
[334807206,1723602651208,-500.0,0.00013698,2]
[334807207,1723602651217,-536.65,0.00013698,2]
[334807208,1723602651227,-1760.61,0.00013698,2]
[334807209,1723602651236,-500.0,0.00013698,2]
[334807210,1723602651245,-500.0,0.00013698,2]
[334807211,1723602651254,-784.6,0.00013698,2]
[334807212,1723602651264,-1520.83,0.00013698,2]
[334807213,1723602651273,-500.0,0.00013698,2]
[334807214,1723602651283,-500.0,0.00013698,2]
[334807215,1723602651292,-548.8759283,0.00013698,2]
[334807216,1723602651301,-500.0,0.00013698,2]
[334807217,1723602651311,-500.47183069,0.00013698,2]
[334807218,1723602651320,-500.0,0.00013698,2]
[334807219,1723602651330,-500.0,0.00013698,2]
[334807220,1723602651340,-500.0,0.00013698,2]
[334807221,1723602651350,-500.0,0.00013698,2]
[334807222,1723602651359,-1664.14,0.00013698,2]
[334807223,1723602651368,-560.13776869,0.00013698,2]
[334807224,1723602651377,-500.0,0.00013698,2]
[334807225,1723602651387,-500.0,0.00013698,2]
[334807226,1723602651397,-500.0,0.00013698,2]
[334807227,1723602651409,-500.0,0.00013698,2]
[334807228,1723602651419,-1282.1,0.00013698,2]
[334807229,1723602651428,-500.0,0.00013698,2]
[334807230,1723602651437,-500.0,0.00013698,2]
[334807231,1723602651447,-500.0,0.00013698,2]
[334807232,1723602651456,-1500.86,0.00013698,2]
[334807233,1723602651466,-500.0,0.00013698,2]
[334807234,1723602651475,-500.0,0.00013698,2]
[334807235,1723602651485,-500.0,0.00013698,2]
[334807236,1723602651494,-500.0,0.00013698,2]
[334807237,1723602651504,-500.0,0.00013698,2]
[334807238,1723602651513,-500.0,0.00013698,2]
[334807239,1723602651523,-602.91,0.00013698,2]
[334807240,1723602651532,-500.0,0.00013698,2]
[334807241,1723602651542,-500.0,0.00013698,2]
[334807242,1723602651551,-500.0,0.00013698,2]
[334807243,1723602651561,-500.0,0.00013698,2]
[334807244,1723602651575,-500.0,0.00013698,2]
[334807245,1723602651584,-500.0,0.00013698,2]
[334807246,1723602651593,-500.0,0.00013698,2]
[334807247,1723602651602,-500.0,0.00013698,2]
[334807248,1723602651613,-500.0,0.00013698,2]
[334807249,1723602651622,-661.23,0.00013698,2]
[334807250,1723602651631,-675.61,0.00013698,2]
[334807251,1723602651642,-500.0,0.00013698,2]
[334807252,1723602651652,-500.0,0.00013698,2]
[334807253,1723602651661,-500.0,0.00013698,2]
[334807254,1723602651671,-886.73,0.00013698,2]
[334807255,1723602651680,-500.0,0.00013698,2]
[334807256,1723602651689,-500.0,0.00013698,2]
[334807257,1723602651699,-500.0,0.00013698,2]
[334807258,1723602651708,-500.0,0.00013698,2]
[334807259,1723602651717,-500.96082313,0.00013698,2]
[334807260,1723602651727,-500.0,0.00013698,2]
[334807261,1723602651736,-973.75,0.00013698,2]
[334807262,1723602651745,-500.0,0.00013698,2]
[334807263,1723602651755,-500.0,0.00013698,2]
[334807264,1723602651765,-500.0,0.00013698,2]
[334807265,1723602651775,-691.88,0.00013698,2]
[334807266,1723602651784,-500.0,0.00013698,2]
[334807267,1723602651793,-500.0,0.00013698,2]
[334807268,1723602651803,-500.0,0.00013698,2]
[334807269,1723602651812,-500.0,0.00013698,2]
[334807270,1723602651821,-500.0,0.00013698,2]
[334807271,1723602651831,-500.0,0.00013698,2]
[334807272,1723602651840,-1363.9,0.00013698,2]
[334807273,1723602651849,-504.24,0.00013698,2]
[334807274,1723602651859,-500.0,0.00013698,2]
[334807275,1723602651868,-241.17581707,0.00013698,2]
[334807276,1723602651877,-500.0,0.00013698,2]
[334807277,1723602651885,-500.0,0.00013698,2]
[334807278,1723602651895,-500.0,0.00013698,2]
[334807279,1723602651904,-500.0,0.00013698,2]
[334807280,1723602651914,-3273.79,0.00013698,2]
[334807281,1723602651924,-626.54,0.00013698,2]
[334807282,1723602651933,-500.0,0.00013698,2]
[334807283,1723602651943,-500.0,0.00013698,2]
[334807284,1723602651953,-1705.8,0.00013698,2]